bitfinex-derivatives/quotes_BNBF0:USTF0_20241230
["timestamp","ask_amount","ask_price","bid_price","bid_amount"]
[1735525274964,0.28666026,697.69,696.23,1.06350525]
[1735525275461,0.28666026,697.69,695.96,6.28600729]
[1735525275662,0.28666026,697.69,695.97,3.47031993]
[1735525275963,0.28666026,697.69,695.98,2.81568736]
[1735525276165,0.28666026,697.69,696.31,1.07364545]
[1735525277670,0.28666026,697.69,696.36,1.07364545]
[1735525278573,0.28666026,697.69,696.45,1.07364545]
[1735525279465,0.28666026,697.69,696.48,1.07364545]
[1735525280368,0.28666026,697.69,696.47,1.07364545]
[1735525281365,0.28666026,697.69,696.49,1.07364545]
[1735525282370,0.28666026,697.69,696.21,1.28837454]
[1735525282371,0.28666026,697.69,696.48,1.07364545]
[1735525283477,0.28666026,697.69,696.49,1.07364545]
[1735525284278,0.28666026,697.69,695.92,2.19202612]
[1735525284279,0.28666026,697.69,696.44,1.07364545]
[1735525284578,0.28666026,697.69,696.12,6.30662897]
[1735525284777,0.28666026,697.69,696.13,3.48140991]
[1735525284972,0.28666026,697.69,696.14,2.82521906]
[1735525285180,0.28666026,697.69,696.15,1.83040563]
[1735525285375,0.28666026,697.69,696.15,3.48220933]
[1735525285879,0.28666026,697.69,696.48,1.07292628]
[1735525286681,0.28666026,697.69,696.44,1.07292628]
[1735525287581,0.28666026,697.69,696.41,1.07292628]
[1735525288681,0.28666026,697.69,696.3,1.07292628]
[1735525289681,0.28666026,697.69,696.24,1.07292628]
[1735525290782,0.28666026,697.69,696.31,1.07292628]
[1735525291584,0.28666026,697.69,696.3,1.07292628]
[1735525292687,0.28666026,697.69,696.47,1.07292628]
[1735525293585,0.28666026,697.69,696.52,1.07292628]
[1735525294887,0.28666026,697.69,696.47,1.07292628]
[1735525295883,0.28666026,697.69,696.43,1.07292628]
[1735525296085,0.28666026,697.69,696.43,4.56826888]
[1735525296286,0.28666026,697.69,696.44,3.4953426]
[1735525296488,0.28666026,697.69,696.44,1.83642965]
[1735525296687,0.28666026,697.69,696.42,1.07292628]
[1735525297182,0.26402057,697.68,696.42,1.07292628]
[1735525297482,0.28667259,697.66,696.42,1.07292628]
[1735525297688,0.28667259,697.66,696.3,1.07292628]
[1735525298791,0.28667259,697.66,696.27,2.84129432]
[1735525298987,0.28667259,697.66,696.28,1.84146085]
[1735525299193,0.28667259,697.66,696.28,3.50219208]
[1735525299388,0.28667259,697.66,696.29,6.3434864]
[1735525299585,0.28667259,697.66,696.3,1.84146085]
[1735525299788,0.28667259,697.66,696.3,4.68275517]
[1735525299989,0.28667259,697.66,696.31,1.84146085]
[1735525300190,0.28667259,697.66,696.27,3.50226512]
[1735525300587,0.28667259,697.66,696.28,2.84129432]
[1735525300890,0.28667259,697.66,696.29,1.84146085]
[1735525301095,0.26403851,697.65,696.29,1.84146085]
[1735525301292,0.28668491,697.63,696.29,1.84146085]
[1735525301595,0.28668491,697.63,696.29,4.68275517]
[1735525301794,0.28668491,697.63,696.29,2.84129432]
[1735525301989,0.28668491,697.63,696.23,1.07292628]
[1735525302393,0.28668491,697.63,696.19,1.07292628]
[1735525302995,0.26406317,697.62,696.19,1.07292628]
[1735525303193,0.26406317,697.62,696.16,1.07292628]
[1735525303394,0.28669724,697.6,696.16,1.07292628]
[1735525303795,0.26407402,697.59,696.16,1.07292628]
[1735525303995,0.28670957,697.57,696.16,1.07292628]
[1735525304396,0.28670957,697.57,696.09,3.50197094]
[1735525304595,0.28670957,697.57,696.09,6.34326526]
[1735525304794,0.28670957,697.57,696.1,6.34326987]
[1735525304998,0.28670957,697.57,696.11,3.50198032]
[1735525305296,0.28670957,697.57,696.12,2.84129432]
[1735525305500,0.28670957,697.57,696.13,3.50198032]
[1735525305701,0.28670957,697.57,696.14,2.84129432]
[1735525305901,0.28670957,697.57,696.15,3.50198032]
[1735525306202,0.28670957,697.57,696.16,2.84129432]
[1735525306701,0.28670957,697.57,696.13,1.0713221]
[1735525307802,0.28670957,697.57,696.07,1.0713221]
[1735525308602,0.28670957,697.57,696.03,1.0713221]
[1735525309497,0.28670957,697.57,696.02,1.0713221]
[1735525310097,0.28670957,697.57,696.02,4.57243714]
[1735525310297,0.28670957,697.57,696.03,3.50111504]
[1735525310503,0.28670957,697.57,696.05,1.0713221]
[1735525310905,0.28670957,697.57,696.05,4.57243714]
[1735525311098,0.28670957,697.57,696.06,3.50111504]
[1735525311302,0.28670957,697.57,696.06,6.34240936]
[1735525311504,0.28670957,697.57,696.07,6.34240936]
[1735525311701,0.28670957,697.57,696.08,3.50111504]
[1735525311902,0.28670957,697.57,696.08,6.34240936]
[1735525312198,0.28670957,697.57,696.09,3.50111504]
[1735525312404,0.28670957,697.57,696.1,2.84129432]
[1735525312604,0.28670957,697.57,696.11,3.50111504]
[1735525313196,0.28670957,697.57,696.12,2.84129432]
[1735525313403,0.28670957,697.57,696.13,3.50111504]
[1735525313604,0.28670957,697.57,696.14,2.84129432]
[1735525313805,0.28670957,697.57,696.15,3.50111504]
[1735525314201,0.28670957,697.57,696.16,2.84129432]
[1735525314398,0.28670957,697.57,696.17,3.50111504]
[1735525314798,0.28670957,697.57,696.21,1.0713221]
[1735525315405,0.28670957,697.57,696.21,4.57243714]
[1735525315703,0.28670957,697.57,696.22,3.50111504]
[1735525315903,0.28670957,697.57,696.23,2.84129432]
[1735525316100,0.28670957,697.57,696.25,1.0713221]
[1735525316403,0.28670957,697.57,696.25,4.57243714]
[1735525316600,0.28670957,697.57,696.26,6.34240936]
[1735525316801,0.28670957,697.57,696.27,3.50111504]
[1735525317003,0.28670957,697.57,696.27,2.84129432]
[1735525317305,0.28670957,697.57,696.17,1.0713221]
[1735525317306,0.28670957,697.57,696.26,1.0713221]
[1735525318103,0.28670957,697.57,695.78,1.0713221]
[1735525319301,0.28670957,697.57,695.83,1.0713221]
[1735525320304,0.28670957,697.57,695.86,1.0713221]
[1735525322409,0.28670957,697.57,695.93,1.0713221]
[1735525323309,0.28670957,697.57,695.9,1.0713221]
[1735525324504,0.28670957,697.57,696.14,1.0713221]
[1735525325613,0.28670957,697.57,696.27,1.0713221]
[1735525326705,0.28670957,697.57,696.48,1.0713221]
[1735525329013,0.28670957,697.57,696.62,1.0713221]
[1735525329908,0.28670957,697.57,696.32,3.49653747]
[1735525329909,0.28670957,697.57,696.59,1.0713221]
[1735525330810,0.28670957,697.57,696.65,1.0713221]
[1735525332213,0.28670957,697.57,696.55,1.0713221]
[1735525333112,0.28670957,697.57,696.28,1.0713221]
[1735525334310,0.28670957,697.57,695.98,6.3103568]
[1735525334311,0.28670957,697.57,696.17,1.0713221]
[1735525335310,0.28670957,697.57,696.07,1.0713221]
[1735525336117,0.28670957,697.57,696.07,7.3816789]
[1735525336313,0.28670957,697.57,696.08,1.65195331]
[1735525336614,0.28670957,697.57,696.08,3.48330358]
[1735525336812,0.28670957,697.57,696.08,6.3103568]
[1735525337018,0.28670957,697.57,696.09,6.3103568]
[1735525337217,0.28670957,697.57,696.21,1.0713221]
[1735525338517,0.28670957,697.57,696.25,1.0713221]
[1735525340416,0.28670957,697.57,696.26,1.0713221]
[1735525340617,0.28670957,697.57,696.26,7.3816789]
[1735525340816,0.28670957,697.57,696.27,3.48330358]
[1735525341013,0.28670957,697.57,696.28,2.82705322]
[1735525341212,0.28670957,697.57,696.39,1.0713221]
[1735525342318,0.28670957,697.57,696.33,6.3103568]
[1735525342319,0.28670957,697.57,696.46,1.0713221]
[1735525343214,0.28670957,697.57,696.48,1.0713221]
[1735525344417,0.28670957,697.57,696.46,1.0713221]
[1735525344817,0.28670957,697.57,696.46,7.3816789]
[1735525345017,0.28670957,697.57,696.47,3.48330358]
[1735525345219,0.28670957,697.57,696.48,2.82705322]
[1735525345519,0.28670957,697.57,696.5,1.0713221]
[1735525345715,0.28670957,697.57,696.5,4.55462568]
[1735525345914,0.28670957,697.57,696.51,3.48330358]
[1735525346115,0.28670957,697.57,696.52,2.82705322]
[1735525346313,0.28670957,697.57,696.53,3.48330358]
[1735525346919,0.28670957,697.57,696.55,1.0713221]
[1735525347114,0.28670957,697.57,696.55,2.72327541]
[1735525347319,0.28670957,697.57,696.56,4.65840349]
[1735525347514,0.28670957,697.57,696.57,1.83135027]
[1735525347914,0.28670957,697.57,696.65,1.0713221]
[1735525348917,0.28670957,697.57,696.6,1.83135027]
[1735525349615,0.28670957,697.57,696.59,1.0713221]
[1735525350921,0.28670957,697.57,696.35,6.30283322]
[1735525350922,0.28670957,697.57,696.64,1.0713221]
[1735525351922,0.28670957,697.57,696.6,1.0713221]
[1735525352825,0.28670957,697.57,696.62,1.0713221]
[1735525353925,0.28670957,697.57,696.65,1.0713221]
[1735525354923,0.28670957,697.57,696.74,1.0713221]
[1735525356725,0.28670957,697.57,696.57,1.0713221]
[1735525357724,0.28670957,697.57,696.65,1.0713221]
[1735525358927,0.28670957,697.57,696.7,1.0713221]
[1735525359831,0.28670957,697.57,696.45,1.82834441]
[1735525359832,0.28670957,697.57,696.73,1.0713221]
[1735525360931,0.28670957,697.57,696.44,1.28558652]
[1735525360932,0.28670957,697.57,696.74,1.0713221]
[1735525362230,0.28670957,697.57,696.61,1.0713221]
[1735525363332,0.28670957,697.57,696.67,1.0713221]
[1735525364532,0.28670957,697.57,696.38,6.30422929]
[1735525364533,0.28670957,697.57,696.74,1.0713221]
[1735525365635,0.28670957,697.57,696.68,1.0713221]
[1735525366637,0.28670957,697.57,696.62,1.0713221]
[1735525367635,0.28670957,697.57,696.61,1.0713221]
[1735525368441,0.28670957,697.57,696.63,1.0713221]
[1735525369439,0.28670957,697.57,696.68,1.0713221]
[1735525370337,0.28670957,697.57,696.7,1.0713221]
[1735525371432,0.28670957,697.57,696.75,1.0713221]
[1735525373237,0.28670957,697.57,696.76,1.0713221]
[1735525374238,0.28670957,697.57,696.93,1.0713221]
[1735525375040,0.28670957,697.57,696.91,1.0713221]
[1735525376240,0.28670957,697.57,696.94,1.0713221]
[1735525378346,0.28670957,697.57,696.97,1.0713221]
[1735525379846,0.28670957,697.57,697.01,1.0713221]
[1735525382949,0.28670957,697.57,697.03,1.0713221]
[1735525384045,0.28670957,697.57,696.98,1.0713221]
[1735525385050,0.28670957,697.57,696.88,1.0713221]
[1735525386147,0.28670957,697.57,696.83,1.0713221]
[1735525386949,0.28670957,697.57,696.82,1.0713221]
[1735525388051,0.28670957,697.57,696.78,1.0713221]
[1735525388855,0.28670957,697.57,696.78,4.57709992]
[1735525389056,0.28670957,697.57,696.8,1.0713221]
[1735525389355,0.28670957,697.57,696.8,2.91455003]
[1735525389557,0.28670957,697.57,696.81,1.84322793]
[1735525389955,0.28670957,697.57,696.8,1.0713221]
[1735525390157,0.28670957,697.57,696.77,1.0713221]
[1735525390859,0.28670957,697.57,696.4,1.0713221]
[1735525393157,0.28670957,697.57,696.44,1.0713221]
[1735525394257,0.28670957,697.57,696.43,1.0713221]
[1735525395259,0.28670957,697.57,696.52,1.0713221]
[1735525395959,0.28670957,697.57,696.37,1.0713221]
[1735525395960,0.28670957,697.57,696.53,1.0713221]
[1735525397061,0.28670957,697.57,696.49,1.0713221]
[1735525398262,0.28670957,697.57,696.48,1.0713221]
[1735525399261,0.28670957,697.57,696.5,1.0713221]
[1735525400057,0.28670957,697.57,696.49,1.0713221]
[1735525401361,0.28670957,697.57,696.79,1.0713221]
[1735525402163,0.28670957,697.57,696.77,1.0713221]
[1735525403161,0.28670957,697.57,696.79,1.0713221]
[1735525403961,0.28670957,697.57,696.73,1.0713221]
[1735525404963,0.28670957,697.57,696.64,1.0713221]
[1735525405961,0.28670957,697.57,696.61,1.0713221]
[1735525407262,0.28670957,697.57,696.63,1.0713221]
[1735525408268,0.28670957,697.57,696.67,1.0713221]
[1735525409065,0.28670957,697.57,696.55,1.0713221]
[1735525411270,0.28670957,697.57,696.51,1.0713221]
[1735525412473,0.28670957,697.57,696.48,1.0713221]
[1735525413772,0.28670957,697.57,696.5,1.0713221]
[1735525414368,0.28670957,697.57,696.47,1.0713221]
[1735525415676,0.28670957,697.57,696.44,4.57322106]
[1735525415870,0.28670957,697.57,696.45,3.50189896]
[1735525416575,0.28670957,697.57,696.46,2.71740656]
[1735525416776,0.28670957,697.57,696.47,3.50189896]
[1735525416973,0.28670957,697.57,696.48,3.50189896]
[1735525417173,0.28670957,697.57,696.49,3.50189896]
[1735525417374,0.28670957,697.57,696.5,3.50189896]
[1735525417574,0.28670957,697.57,696.51,1.84124872]
[1735525417776,0.28670957,697.57,696.56,1.0713221]
[1735525418777,0.28670957,697.57,696.58,1.0713221]
[1735525422080,0.28670957,697.57,696.57,1.0713221]
[1735525423080,0.28670957,697.57,691.03,8.57592937]
[1735525423081,0.28670957,697.57,696.6,1.0713221]
[1735525424282,0.28670957,697.57,696.55,1.0713221]
[1735525425380,0.28670957,697.57,696.52,3.49904038]
[1735525425381,0.28670957,697.57,696.63,1.0713221]
[1735525426481,0.28670957,697.57,696.69,1.0713221]
[1735525429681,0.28670957,697.57,696.66,1.0713221]
[1735525430787,0.28670957,697.57,696.68,1.0713221]
[1735525432189,0.28670957,697.57,696.58,1.0713221]
[1735525432590,1.05633391,698.22,696.58,1.0713221]
[1735525432789,0.26388457,698.21,696.58,1.0713221]
[1735525432986,0.26388457,698.21,696.47,1.0713221]
[1735525432987,0.26388457,698.21,696.61,1.0713221]
[1735525433190,0.26388457,698.2,696.61,1.0713221]
[1735525433391,0.26388457,698.19,696.61,1.0713221]
[1735525433590,0.26388457,698.18,696.61,1.0713221]
[1735525433786,0.26388707,698.17,696.61,1.0713221]
[1735525433992,0.26388707,698.16,696.64,1.0713221]
[1735525434190,0.26388707,698.15,696.64,1.0713221]
[1735525434491,1.05633391,698.25,696.64,1.0713221]
[1735525434685,0.26389395,698.24,696.64,1.0713221]
[1735525434886,1.05633391,698.22,696.62,1.0713221]
[1735525435086,0.26389395,698.21,696.62,1.0713221]
[1735525436386,0.26388859,698.2,696.62,1.0713221]
[1735525436586,0.26388859,698.19,696.62,1.0713221]
[1735525436791,0.26388859,698.18,696.64,1.0713221]
[1735525437087,0.26388859,698.17,696.64,1.0713221]
[1735525437291,0.26388859,698.16,696.64,1.0713221]
[1735525437591,0.26388859,698.15,696.64,1.0713221]
[1735525437797,0.26388859,698.14,696.64,1.0713221]
[1735525437989,0.26388859,698.14,696.18,2.18728262]
[1735525437990,1.05633391,698.21,696.62,1.0713221]
[1735525438193,0.26389327,698.2,696.62,1.0713221]
[1735525438989,1.05633391,698.16,696.57,1.0713221]
[1735525439192,0.26388969,698.15,696.57,1.0713221]
[1735525439788,1.05633391,698.14,696.56,1.0713221]
[1735525440192,0.26390176,698.13,696.56,1.0713221]
[1735525440987,0.26389714,698.12,696.55,1.0713221]
[1735525442094,1.05633391,698.05,696.68,1.0713221]
[1735525442489,0.2638985,698.04,696.68,1.0713221]
[1735525442689,1.05633391,698.05,696.68,1.0713221]
[1735525442885,1.05633391,698.09,696.69,1.0713221]
[1735525443089,0.26389202,698.08,696.69,1.0713221]
[1735525443894,1.05633391,698.07,696.71,1.0713221]
[1735525444196,0.26389202,698.06,696.71,1.0713221]
[1735525444998,0.26389202,698.06,696.72,1.0713221]
[1735525445295,0.26389202,698.05,696.72,1.0713221]
[1735525445495,1.05633391,698.09,696.72,1.0713221]
[1735525445695,0.26388412,698.08,696.72,1.0713221]
[1735525445896,0.26388412,698.08,696.63,1.0713221]
[1735525445897,0.26388412,698.08,696.73,1.0713221]
[1735525446096,0.26388412,698.07,696.73,1.0713221]
[1735525446295,1.05633391,698.1,696.73,1.0713221]
[1735525447192,1.05633391,698.25,696.59,1.0713221]
[1735525447401,0.26387129,698.24,696.59,1.0713221]
[1735525448103,0.26388055,698.23,696.59,1.0713221]
[1735525448292,1.05633391,698.22,696.56,1.0713221]
[1735525448493,0.26387693,698.21,696.56,1.0713221]
[1735525448897,1.05633391,698.22,696.56,1.0713221]
[1735525449397,1.05633391,698.23,696.57,1.0713221]
[1735525449599,0.26387491,698.22,696.57,1.0713221]
[1735525451196,1.05633391,698.21,696.61,1.0713221]
[1735525451396,0.26387491,698.2,696.61,1.0713221]
[1735525452397,1.05633391,698.19,696.62,1.0713221]
[1735525452798,0.26387454,698.18,696.62,1.0713221]
[1735525453001,1.05633391,698.19,696.62,1.0713221]
[1735525453202,0.26388044,698.18,696.62,1.0713221]
[1735525453804,0.26388044,698.18,696.51,1.0713221]
[1735525453805,0.26388044,698.18,696.63,1.0713221]
[1735525454803,0.26388044,698.18,696.31,1.28558652]
[1735525454804,1.05633391,698.15,696.62,1.0713221]
[1735525455706,1.05633391,698.16,696.66,1.0713221]
[1735525456305,0.26386719,698.15,696.66,1.0713221]
[1735525456805,1.05633391,698.16,696.66,1.0713221]
[1735525457001,1.05633391,698.06,696.85,1.0713221]
[1735525457904,2.15668174,698.58,689.09,8.5860422]
[1735525457905,1.05633391,698.23,696.63,1.0713221]
[1735525459008,1.05633391,698.2,696.64,1.0713221]
[1735525460210,1.05633391,698.19,696.67,1.0713221]
[1735525461512,1.05633391,698.17,696.66,1.0713221]
[1735525461706,0.26387931,698.16,696.66,1.0713221]
[1735525462508,1.05633391,698.0,696.73,1.0713221]
[1735525463908,1.05633391,697.99,696.7,1.0713221]
[1735525464912,1.05633391,698.06,696.7,1.0713221]
[1735525465106,1.05633391,698.06,696.66,1.0713221]
[1735525466606,1.05633391,698.01,696.63,1.0713221]
[1735525467512,0.6138364,698.58,696.31,1.84216048]
[1735525467513,1.05633391,697.99,696.57,1.0713221]
[1735525468508,1.05633391,698.0,696.54,1.0713221]
[1735525469714,1.05633391,698.0,696.52,1.0713221]
[1735525470412,1.05633391,698.02,696.53,1.0713221]
[1735525471313,1.05633391,698.03,696.54,1.0713221]
[1735525472411,1.05633391,698.03,696.27,6.22310618]
[1735525472412,1.05633391,698.03,696.53,1.0713221]
[1735525472610,0.28652884,698.01,696.53,1.0713221]
[1735525473613,0.28652884,698.01,696.51,1.0713221]
[1735525474611,0.28652884,698.01,696.04,2.18728262]
[1735525474612,0.28652884,698.01,696.68,1.0713221]
[1735525475718,0.28652884,698.01,696.56,1.0713221]
[1735525476817,0.28652884,698.01,696.23,6.22434804]
[1735525476818,0.28652884,698.01,696.55,1.0713221]
[1735525478019,0.28652884,698.01,696.52,1.0713221]
[1735525478912,0.28652884,698.01,696.54,1.0713221]
[1735525479915,0.26390273,698.0,696.54,1.0713221]
[1735525480119,0.28654116,697.98,696.54,1.0713221]
[1735525480318,0.28654116,697.98,696.23,6.22701736]
[1735525480319,0.2639206,697.97,696.52,1.0713221]
[1735525480519,0.28655347,697.95,696.52,1.0713221]
[1735525480719,0.2639206,697.94,696.52,1.0713221]
[1735525480916,0.28656579,697.92,696.52,1.0713221]
[1735525481523,1.05633391,697.91,696.71,1.0713221]
[1735525481717,0.28657811,697.89,696.71,1.0713221]
[1735525482521,0.28657811,697.89,696.68,1.0713221]
[1735525484617,0.28657811,697.89,696.74,1.0713221]
[1735525485619,0.28657811,697.89,696.73,1.0713221]
[1735525488217,0.28657811,697.89,696.67,1.0713221]
[1735525491027,0.28657811,697.89,696.68,1.0713221]
[1735525491923,0.28657811,697.89,696.72,1.0713221]
[1735525493523,0.28657811,697.89,696.69,1.0713221]
[1735525495527,0.28657811,697.89,696.72,1.0713221]
[1735525496630,0.28657811,697.89,696.75,1.0713221]
[1735525497829,0.28657811,697.89,696.88,1.0713221]
[1735525500229,0.28657811,697.89,696.85,1.0713221]
[1735525501524,0.28657811,697.89,696.8,1.0713221]
[1735525502427,0.28657811,697.89,696.79,1.0713221]
[1735525503323,0.28657811,697.89,696.8,1.0713221]
[1735525504433,0.28657811,697.89,696.84,1.0713221]
[1735525506927,0.28657811,697.89,696.81,1.0713221]
[1735525507826,0.28657811,697.89,696.83,1.0713221]
[1735525509129,0.28657811,697.89,696.85,1.0713221]
[1735525510428,0.28657811,697.89,696.76,1.0713221]
[1735525510429,0.28657811,697.89,696.72,1.0713221]
[1735525511434,0.28657811,697.89,696.25,2.18728262]
[1735525511435,0.28657811,697.89,696.7,1.0713221]
[1735525513630,0.28657811,697.89,696.68,1.0713221]
[1735525514832,0.28657811,697.89,696.67,1.0713221]
[1735525515837,0.28657811,697.89,696.62,1.0713221]
[1735525518135,0.28657811,697.89,696.64,1.0713221]
[1735525518941,0.28657811,697.89,696.78,1.0713221]
[1735525519942,0.28657811,697.89,696.77,1.0713221]
[1735525521244,0.28657811,697.89,696.68,1.0713221]
[1735525522244,0.28657811,697.89,696.61,1.0713221]
[1735525523150,0.28657811,697.89,696.63,1.0713221]
[1735525524150,0.28657811,697.89,696.66,1.0713221]
[1735525525149,0.28657811,697.89,696.68,1.0713221]
[1735525526250,0.28657811,697.89,696.63,6.22057915]
[1735525526251,0.28657811,697.89,696.77,1.0713221]
[1735525527351,0.28657811,697.89,696.8,1.0713221]
[1735525528050,0.28657811,697.89,696.79,1.0713221]
[1735525529052,0.28657811,697.89,696.8,1.0713221]
[1735525530348,0.28657811,697.89,696.75,1.0713221]
[1735525531254,0.28657811,697.89,696.63,6.21998979]
[1735525531255,0.28657811,697.89,696.77,1.0713221]
[1735525532254,0.28657811,697.89,696.71,1.0713221]
[1735525532752,0.28657811,697.89,696.71,2.91437307]
[1735525532952,0.28657811,697.89,696.72,1.84305097]
[1735525533353,0.28657811,697.89,696.7,3.50590135]
[1735525533749,0.28657811,697.89,696.7,1.84305097]
[1735525534147,0.28657811,697.89,696.7,1.66293921]
[1735525534347,0.28657811,697.89,696.7,1.84305097]
[1735525534551,0.28657811,697.89,696.7,3.50599018]
[1735525534751,0.28657811,697.89,696.7,1.84305097]
[1735525534953,0.28657811,697.89,696.7,1.66295409]
[1735525535152,0.28657811,697.89,696.7,4.57732716]
[1735525535349,0.28657811,697.89,696.71,1.84305097]
[1735525535752,0.28657811,697.89,696.7,1.0713221]
[1735525536449,0.28657811,697.89,693.65,3.32590818]
[1735525536450,0.28657811,697.89,696.67,1.0713221]
[1735525537051,0.28657811,697.89,696.67,4.57737634]
[1735525537250,0.28657811,697.89,696.68,3.50605424]
[1735525539255,0.28657811,697.89,696.68,1.84305097]
[1735525539652,0.28657811,697.89,696.58,1.0713221]
[1735525539653,0.28657811,697.89,696.66,1.0713221]
[1735525540855,0.28657811,697.89,696.6,1.0713221]
[1735525542053,0.28657811,697.89,696.46,1.0713221]
[1735525542955,0.28657811,697.89,696.45,1.0713221]
[1735525544156,0.28657811,697.89,696.42,1.0713221]
[1735525544849,0.28657811,697.89,696.37,1.0713221]
[1735525545755,0.28657811,697.89,695.94,2.18728262]
[1735525545756,0.28657811,697.89,696.38,1.0713221]
[1735525546653,0.28657811,697.89,696.34,1.0713221]
[1735525547550,0.28657811,697.89,696.36,1.0713221]
[1735525548554,0.28657811,697.89,696.35,1.0713221]
[1735525549558,0.28657811,697.89,696.37,1.0713221]
[1735525550758,0.28657811,697.89,696.39,1.0713221]
[1735525552058,0.28657811,697.89,696.46,1.0713221]
[1735525552961,0.28657811,697.89,696.48,1.0713221]
[1735525553654,0.28657811,697.89,696.45,1.0713221]
[1735525554357,0.28657811,697.89,696.15,1.0713221]
[1735525555556,0.28657811,697.89,696.14,1.0713221]
[1735525556565,0.28657811,697.89,696.16,1.0713221]
[1735525558761,0.28657811,697.89,696.17,1.0713221]
[1735525560163,0.28657811,697.89,696.18,1.0713221]
[1735525561364,0.28657811,697.89,696.19,1.0713221]
[1735525562469,0.28657811,697.89,696.18,1.0713221]
[1735525564572,0.28657811,697.89,696.02,1.0713221]
[1735525564573,0.28657811,697.89,696.51,1.0713221]
[1735525565573,0.28657811,697.89,696.46,1.0713221]
[1735525566674,0.28657811,697.89,696.49,1.0713221]
[1735525566974,0.26399898,697.88,696.49,1.0713221]
[1735525567576,0.28659043,697.86,696.49,1.0713221]
[1735525567772,0.26399898,697.85,696.49,1.0713221]
[1735525567976,0.26399898,697.85,696.05,2.18728262]
[1735525567977,1.34293666,697.83,696.34,1.0713221]
[1735525568177,0.28661096,697.81,696.34,1.0713221]
[1735525568779,0.28661096,697.81,695.83,1.0713221]
[1735525569873,0.28661096,697.81,695.85,1.0713221]
[1735525570980,0.28661096,697.81,695.91,1.0713221]
[1735525572175,0.28661096,697.81,695.92,1.0713221]
[1735525573083,0.28661096,697.81,695.93,1.0713221]
[1735525573981,0.28661096,697.81,695.96,1.0713221]
[1735525574884,0.28661096,697.81,695.95,1.0713221]
[1735525576984,0.28661096,697.81,695.93,1.0713221]
[1735525577781,0.28661096,697.81,695.95,1.0713221]
[1735525578485,0.28661096,697.81,696.23,1.0713221]
[1735525579689,0.28661096,697.81,696.61,1.0713221]
[1735525580486,0.28661096,697.81,696.62,1.0713221]
[1735525581683,0.28661096,697.81,696.68,1.0713221]
[1735525582891,0.28661096,697.81,696.76,1.0713221]
[1735525583884,0.28661096,697.81,696.5,6.21643837]
[1735525583885,0.28661096,697.81,696.73,1.0713221]
[1735525584991,0.28661096,697.81,696.69,1.0713221]
[1735525585893,0.28661096,697.81,696.72,1.0713221]
[1735525586890,0.28661096,697.81,696.64,3.50394128]
[1735525586891,0.28661096,697.81,696.73,1.0713221]
[1735525587989,0.28661096,697.81,696.69,1.8423046]
[1735525587990,0.28661096,697.81,696.71,1.0713221]
[1735525588790,1.34294487,697.81,696.63,1.0713221]
[1735525589792,1.34294487,697.81,696.54,4.57778242]
[1735525589793,0.28661096,697.81,696.65,1.0713221]
[1735525592592,0.28661096,697.81,696.57,1.0713221]
[1735525592593,0.28661096,697.81,696.62,1.0713221]
[1735525593792,0.28661096,697.81,696.63,1.0713221]
[1735525594894,0.28661096,697.81,696.52,1.0713221]
[1735525595891,0.28661096,697.81,696.51,1.0713221]
[1735525598104,0.28661096,697.81,696.63,1.0713221]
[1735525599103,0.28661096,697.81,696.62,1.0713221]
[1735525599804,0.28661096,697.81,696.63,1.0713221]
[1735525603005,0.28661096,697.81,696.56,1.0713221]
[1735525603799,0.28661096,697.81,696.59,1.0713221]
[1735525605199,0.28661096,697.81,696.62,1.0713221]
[1735525606505,0.28661096,697.81,696.63,1.0713221]
[1735525607306,0.28661096,697.81,696.46,1.0713221]
[1735525609707,0.28661096,697.81,696.43,1.0713221]
[1735525611204,0.28661096,697.81,696.47,1.0713221]
[1735525612311,0.28661096,697.81,696.64,1.0713221]
[1735525614011,0.28661096,697.81,696.67,1.0713221]
[1735525615111,0.28661096,697.81,696.65,1.0713221]
[1735525616014,0.28661096,697.81,696.67,1.0713221]
[1735525617107,0.28661096,697.81,696.65,1.0713221]
[1735525618116,0.28661096,697.81,696.71,1.0713221]
[1735525619111,0.28661096,697.81,696.73,1.0713221]
[1735525621609,0.28661096,697.81,696.62,1.0713221]
[1735525622713,0.28661096,697.81,696.47,1.0713221]
[1735525623816,0.28661096,697.81,696.5,1.0713221]
[1735525624919,0.28661096,697.81,688.84,8.59119066]
[1735525624920,0.28661096,697.81,696.35,1.0713221]
[1735525625821,0.28661096,697.81,696.34,1.0713221]
[1735525626621,0.28661096,697.81,696.37,1.0713221]
[1735525627623,0.28661096,697.81,696.35,1.0713221]
[1735525627823,0.26400313,697.8,696.35,1.0713221]
[1735525628025,0.28662329,697.78,696.35,1.0713221]
[1735525628323,0.26401424,697.77,696.35,1.0713221]
[1735525628522,0.28663561,697.75,696.35,1.0713221]
[1735525628725,0.26401424,697.74,696.39,1.0713221]
[1735525628919,0.28664793,697.72,696.39,1.0713221]
[1735525629119,0.26401424,697.71,696.39,1.0713221]
[1735525629426,0.28666026,697.69,696.39,1.0713221]
[1735525629924,0.28666026,697.69,696.12,1.28558652]
[1735525629925,0.28666026,697.69,696.36,1.0713221]
[1735525630625,0.26403085,697.68,696.36,1.0713221]
[1735525630924,0.28667259,697.66,696.31,1.0713221]
[1735525631123,0.26403085,697.65,696.31,1.0713221]
[1735525631322,0.28668491,697.63,696.31,1.0713221]
[1735525632124,0.28668491,697.63,696.07,3.50452897]